Cogmind - Beta 13 @@@ ROGUE MODE // 2024.04.26 @ 22:45:37 Player: e.v.o Result: Self-destructed Performance ------------- Evolutions (4) 2000 Regions Visited (10) 2000 Robots Destroyed (71) 355 Value Destroyed (1829) 1829 Prototype IDs (16) 320 Alien Tech Used (0) 0 Bonus (359) 359 TOTAL SCORE: 6863 Bonus ------- High Alert Combat Kills 26 Follower Combat Kills 68 Met Data Miner 300 Friendly Fire -35 Cogmind --------- Core Integrity 676/850 Matter 75/300 Energy 300/300 System Corruption 3% Temperature Cool (60) Movement Flying (94) Ox1 Location -6/Factory Parts ------- > --- POWER (1) -------- Enhanced Nuclear Core > --- PROPULSION (4) --- Improved Cesium-ion Thruster Improved Cesium-ion Thruster Cooled VTOL Module > --- UTILITY (7) ------ Advanced Visual Processing Unit Improved Sensor Array Advanced Signal Interpreter Advanced Terrain Scan Processor Advanced Targeting Computer System Shield > --- WEAPON (3) ------- Coil Gun Heavy Machine Gun > --- INVENTORY (5) ---- Fusion Compressor Cooled VTOL Module Cooled VTOL Module Improved Reaction Control System Peak State ------------ > --- POWER ------------ Enhanced Nuclear Core > --- PROPULSION ------- Improved Cesium-ion Thruster Improved Cesium-ion Thruster Cooled VTOL Module Cooled Cesium-ion Thruster > --- UTILITY ---------- Advanced Visual Processing Unit Improved Sensor Array Advanced Signal Interpreter Advanced Terrain Scanner Advanced Terrain Scan Processor Advanced Targeting Computer System Shield > --- WEAPON ----------- Enhanced Autogun Gauss Rifle Coil Gun > --- INVENTORY -------- Enhanced Nuclear Core Improved Cesium-ion Thruster Cooled VTOL Module Improved Reaction Control System Flak Gun [Rating: 67] Favorites ----------- Power Enhanced Nuclear Core Engine Light Ion Engine Power Core Enhanced Nuclear Core Propulsion Cooled VTOL Module Treads Medium Treads Leg Aluminum Leg Flight Unit Cooled VTOL Module Utility Advanced Targeting Computer Device Improved Sensor Array Storage Small Storage Unit Processor Advanced Targeting Computer Hackware System Shield Protection Improved Light Armor Plating Weapon Gauss Rifle Energy Gun Spread Laser Energy Cannon EM Pulse Cannon Ballistic Gun Gauss Rifle Build | -11 -10 -9 -9 -8 -7 -7 -7 -7 -6 -6 ------- Run | Yrd Mat Mat Min Mat Fac Low Low Dat Pro Fac Slots Evolved 8 | . . 2 . 2 2 . . . . 2 Power . | . . . . . . . . . . . Propulsion 2 | . . 1 . . 1 . . . . . Utility 5 | . . 1 . 1 1 . . . . 2 Weapon 1 | . . . . 1 . . . . . . Parts Attached 127 | 5 20 5 22 13 48 3 . . 2 9 Power 16 | 1 2 . 6 4 2 . . . . 1 Engine 11 | 1 2 . 6 2 . . . . . . Core 5 | . . . . 2 2 . . . . 1 Reactor . | . . . . . . . . . . . Propulsion 44 | 2 7 4 9 2 18 . . . . 2 Treads 9 | . . . . . 9 . . . . . Leg 9 | 2 7 . . . . . . . . . Wheel . | . . . . . . . . . . . Hover . | . . . . . . . . . . . Flight 26 | . . 4 9 2 9 . . . . 2 Utility 33 | . 3 1 2 3 16 2 . . 2 4 Device 21 | . 2 1 . 1 11 2 . . 2 2 Storage 1 | . 1 . . . . . . . . . Processor 8 | . . . 2 2 2 . . . . 2 Hackware 1 | . . . . . 1 . . . . . Protection 2 | . . . . . 2 . . . . . Artifact . | . . . . . . . . . . . Weapon 34 | 2 8 . 5 4 12 1 . . . 2 Energy Gun 12 | 2 6 . . 1 3 . . . . . Energy Cannon 1 | . . . . 1 . . . . . . Ballistic Gun 21 | . 2 . 5 2 9 1 . . . 2 Ballistic Cannon . | . . . . . . . . . . . Launcher . | . . . . . . . . . . . Special Weapon . | . . . . . . . . . . . Impact Weapon . | . . . . . . . . . . . Slashing Weapon . | . . . . . . . . . . . Piercing Weapon . | . . . . . . . . . . . Special Melee Weapon . | . . . . . . . . . . . Unidentified Prototypes 6 | . . . . . 5 . . . . 1 Corrupted Parts 1 | . . . . . 1 . . . . . System Corruption 7 | . . . . . 7 . . . . . Parts Lost 15 | . . 1 6 2 2 . . . . 4 Power 4 | . . . 3 1 . . . . . . Propulsion 6 | . . 1 1 1 2 . . . . 1 Utility 2 | . . . 1 . . . . . . 1 Weapon 3 | . . . 1 . . . . . . 2 Highest Loss Streak 4 | . . 1 2 2 2 . . . . 4 To Critical Strikes 1 | . . . . . . . . . . 1 Average Slot Usage (%) 97 | . 94 85 89 96 98 100 100 100 100 99 Engine 3 | . 13 11 10 8 . . . . . . Core 4 | . . . . . 7 7 7 7 7 6 Treads 4 | . . . . . 15 . . . . . Leg 4 | . 27 . . . . . . . . . Flight 20 | . . 33 32 26 13 30 30 30 30 25 Device 10 | . 9 19 12 1 12 7 7 7 7 12 Storage 2 | . 14 . . . . . . . . . Processor 17 | . . . 12 31 17 23 23 23 23 26 Hackware 3 | . . . . . 1 7 7 7 7 6 Protection 1 | . . . . . 4 . . . . . Energy Gun 3 | . 14 22 3 2 1 . . . . . Ballistic Gun 19 | . 13 . 17 22 20 23 23 23 23 19 Naked Turns . | . . . . . . . . . . . Heaviest Build 24 | 7 15 11 11 14 24 20 20 20 21 22 Greatest Support 118 | 20 20 12 12 12 118 21 21 21 21 28 Greatest Overweight (x) 3 | . 3 . 3 1 1 . . . . . Average Overweight (x) . | . . . . . . . . . . . Largest Inventory Capacity 8 | 5 8 8 5 5 5 5 5 5 5 5 Average Capacity 5 | 5 8 5 5 5 5 5 5 5 5 5 Most Carried 8 | 3 8 7 5 5 5 5 5 5 5 5 Average Carried 5 | 1 7 4 3 4 4 4 5 5 5 4 Final Capacity 8 | 5 8 5 5 5 5 5 5 5 5 5 Final Carried 8 | 2 8 4 5 5 4 5 5 5 5 4 Class Distribution -------------------- 43% | Scout 16% | Scavenger-Skirmisher 14% | Mutant 9% | Sprinter 7% | Scavenger-Sprinter 7% | Scavenger-Mutant Dominant Class ---------------- Mutant | -10/Materials Sprinter | -9/Materials Scavenger-Mutant | -9/Mines Scavenger-Gunner | -8/Materials Scavenger-Skirmisher | -7/Factory Scout | -7/Lower Caves Scout | -7/Lower Caves Scout | -7/Data Miner Sprinter | -6/Proximity Caves Scout | -6/Factory Resources | -11 -10 -9 -9 -8 -7 -7 -7 -7 -6 -6 ----------- Run | Yrd Mat Mat Min Mat Fac Low Low Dat Pro Fac Matter Collected 2833 | 209 418 20 407 174 1271 237 . . 14 83 Remotely . | . . . . . . . . . . . Salvage Created 2778 | . 468 81 311 189 1394 241 . . . 94 Parts 129 | . 26 5 16 8 57 7 . . . 10 Haulers Intercepted 6 | . 1 . . 1 4 . . . . . Recyclers Shooed 2 | . . . . 1 . . . . . 1 Parts Field Recycled . | . . . . . . . . . . . Retrieved Matter . | . . . . . . . . . . . Parts Self-Destructed 9 | . . . . . . 9 . . . . Prevented . | . . . . . . . . . . . Kills | -11 -10 -9 -9 -8 -7 -7 -7 -7 -6 -6 ------- Run | Yrd Mat Mat Min Mat Fac Low Low Dat Pro Fac Combat Hostiles Destroyed 43 | . 10 2 14 1 10 6 . . . . Guns 42 | . 9 2 14 1 10 6 . . . . AOE 1 | . 1 . . . . . . . . . Classes Destroyed 12 | . 4 . 4 1 3 . . . . . Worker 4 | . 2 . . . 1 . . . . 1 Hauler 6 | . 1 . . 1 4 . . . . . Recycler 10 | . . . 2 1 7 . . . . . Operator 2 | . . . . 1 . . . . . 1 Watcher 8 | . 2 1 . . 3 . . . . 2 Swarmer 13 | . . . 9 . 1 3 . . . . Grunt 19 | . 10 2 1 1 3 2 . . . . Sentry 2 | . . . . . 1 1 . . . . Demolisher 2 | . . . 2 . . . . . . . Hunter 3 | . . . . . 3 . . . . . Programmer 2 | . . . . . 2 . . . . . Assembled 2 | . . . 2 . . . . . . . Best Kill Streak 8 | . 5 3 8 3 7 3 . . . 1 Combat Bots Only 8 | . 4 2 8 1 2 3 . . . . Max Kills in Single Turn 2 | . 1 2 2 1 2 1 . . . 1 Gunslinging 1 | . . . 1 . . . . . . . Exploded 1 | . 1 . . . . . . . . . Melee . | . . . . . . . . . . . Uniques/NPCs Destroyed . | . . . . . . . . . . . Combat | -11 -10 -9 -9 -8 -7 -7 -7 -7 -6 -6 -------- Run | Yrd Mat Mat Min Mat Fac Low Low Dat Pro Fac Hostile Shots Fired 357 | . 46 21 87 13 103 11 . . . 76 Missed 133 | . 20 7 33 3 41 6 . . . 23 Damage Taken 3103 | . 365 164 558 156 920 69 . . . 871 Core 444 | . 67 24 118 . 61 . . . . 174 Absorbed by Shields . | . . . . . . . . . . . Regen/Repaired (Parts) 16 | . . . . . 16 . . . . . Core Remaining (%) 85 | 100 73 . 64 100 . . . . 91 . Volleys Fired 220 | . 46 7 40 20 71 15 . . . 21 Largest 3 | . 2 2 2 3 3 3 . . . 3 Hottest 130 | . 130 130 130 103 121 81 . . . 83 Shots Fired 546 | . 92 14 78 60 211 33 . . . 58 Gun 546 | . 92 14 78 60 211 33 . . . 58 Cannon . | . . . . . . . . . . . Launcher . | . . . . . . . . . . . Special . | . . . . . . . . . . . Kinetic 486 | . 70 . 64 54 207 33 . . . 58 Thermal 60 | . 22 14 14 6 4 . . . . . Explosive . | . . . . . . . . . . . Electromagnetic . | . . . . . . . . . . . Robot Hit Streak 27 | . 7 12 7 27 19 6 . . . 6 Robot Miss Streak 13 | . 13 9 10 2 4 3 . . . 5 Penetration Max 1 | . . . . . 1 1 . . . 1 Secondary Targets 11 | . 1 1 6 . 1 2 . . . . Max Gunslinging Chain 1 | . 1 1 1 . 1 1 . . . . Shots Hit Robots 358 | . 63 12 49 45 140 19 . . . 30 Core Hits 170 | . 39 13 32 17 47 13 . . . 9 Critical Kills 2 | . 1 . . . 1 . . . . . Critical Parts Destroyed 1 | . . . . . 1 . . . . . Critical Strikes 4 | . 1 . . . 3 . . . . . Burn 1 | . . . . . 1 . . . . . Destroy 3 | . 1 . . . 2 . . . . . Melee Attacks . | . . . . . . . . . . . Impact . | . . . . . . . . . . . Slashing . | . . . . . . . . . . . Piercing . | . . . . . . . . . . . Sneak Attacks . | . . . . . . . . . . . Combat Hostiles . | . . . . . . . . . . . Follow-up Attacks . | . . . . . . . . . . . Damage Inflicted 5458 | . 957 174 643 377 2347 288 . . . 672 Guns 5355 | . 859 174 643 377 2342 288 . . . 672 Cannons . | . . . . . . . . . . . Explosions 98 | . 98 . . . . . . . . . Melee . | . . . . . . . . . . . Ramming 5 | . . . . . 5 . . . . . Kinetic 4760 | . 705 . 497 311 2287 288 . . . 672 Thermal 595 | . 154 174 146 66 55 . . . . . Explosive 98 | . 98 . . . . . . . . . Electromagnetic . | . . . . . . . . . . . Impact . | . . . . . . . . . . . Slashing . | . . . . . . . . . . . Piercing . | . . . . . . . . . . . Highest Corruption 9 | . . . . . 9 4 4 4 4 3 Average Corruption 5 | . . . . . 7 4 4 4 3 1 Corruption Purged 9 | . . . . . 5 . . . 4 . Corruption Blocked . | . . . . . . . . . . . Effects 59 | . . . . . 36 20 2 1 . . Message Errors 13 | . . . . . 6 6 1 . . . Matter Fused 18 | . . . . . 10 8 . . . . Heat Flow Errors 6 | . . . . . 3 2 1 . . . Energy Discharges 8 | . . . . . 5 2 . 1 . . Parts Fused 2 | . . . . . 2 . . . . . Data Loss (minor) 8 | . . . . . 6 2 . . . . Data Loss (major) 1 | . . . . . 1 . . . . . Misfires 1 | . . . . . 1 . . . . . Weapon Failures 2 | . . . . . 2 . . . . . Overload Shots . | . . . . . . . . . . . Overflow Damage . | . . . . . . . . . . . Projectiles . | . . . . . . . . . . . Explosions . | . . . . . . . . . . . Melee . | . . . . . . . . . . . Knockbacks . | . . . . . . . . . . . Impact . | . . . . . . . . . . . Kinetic . | . . . . . . . . . . . Secondary . | . . . . . . . . . . . Self-Inflicted Damage . | . . . . . . . . . . . Shots . | . . . . . . . . . . . Rammed 1 | . . . . . 1 . . . . . Targets Rammed 1 | . . . . . 1 . . . . . Kicked . | . . . . . . . . . . . Crushed . | . . . . . . . . . . . Highest Temperature 331 | . 54 206 60 331 226 198 183 . . 169 Average Temperature 56 | . 17 93 15 91 43 68 107 . . 76 Received Heat Transfer 585 | . 237 114 60 108 66 . . . . . Siege Activations . | . . . . . . . . . . . Robots Corrupted . | . . . . . . . . . . . Combat Hostiles . | . . . . . . . . . . . Parts Fried . | . . . . . . . . . . . Impact Corruptions . | . . . . . . . . . . . Robots Melted . | . . . . . . . . . . . Combat Hostiles . | . . . . . . . . . . . Parts Melted 1 | . . . . . 1 . . . . . Heat Transferred 950 | . 190 210 180 148 222 . . . . . Parts Sabotaged . | . . . . . . . . . . . Parts Stolen . | . . . . . . . . . . . Parts Stripped . | . . . . . . . . . . . Power Chain Reactions . | . . . . . . . . . . . Alert | -11 -10 -9 -9 -8 -7 -7 -7 -7 -6 -6 ------- Run | Yrd Mat Mat Min Mat Fac Low Low Dat Pro Fac Peak Influence 434 | . 218 367 434 235 264 . . . . 75 Initial 142 | . . 80 142 128 97 . . . . . Average 106 | . 71 197 309 184 102 . . . . 10 Maximum Alert Level 2 | . 1 1 2 1 1 . . . . . Low Security (%) 76 | 100 90 41 10 49 83 . . . . 100 Level 1 21 | . 9 58 78 50 16 . . . . . Level 2 1 | . . . 11 . . . . . . . Level 3 . | . . . . . . . . . . . Level 4 . | . . . . . . . . . . . Level 5 . | . . . . . . . . . . . High Security . | . . . . . . . . . . . Max Security . | . . . . . . . . . . . Squads Dispatched 11 | . 2 1 . 2 4 . . . . 2 Investigation 6 | . 2 1 . . 2 . . . . 1 Extermination 3 | . . . . . 2 . . . . 1 Reinforcement 2 | . . . . 2 . . . . . . Assault . | . . . . . . . . . . . Garrison . | . . . . . . . . . . . Intercept . | . . . . . . . . . . . Searches Triggered . | . . . . . . . . . . . Construction Impeded 1 | . . . . 1 . . . . . . Haulers Reinforced . | . . . . . . . . . . . Active Scanning Responses . | . . . . . . . . . . . Cargo Convoy Interrupts . | . . . . . . . . . . . Stealth | -11 -10 -9 -9 -8 -7 -7 -7 -7 -6 -6 --------- Run | Yrd Mat Mat Min Mat Fac Low Low Dat Pro Fac Distress Signals 3 | . . 2 . . . . . . . 1 Communications Jammed . | . . . . . . . . . . . Distress Signals . | . . . . . . . . . . . Times Spotted 104 | . 20 16 24 8 22 6 . . . 8 Peak Tracking Total 10 | . 5 10 7 3 3 3 . . . 4 Tactical Retreats 5 | . . 2 2 1 . . . . . . Traps | -11 -10 -9 -9 -8 -7 -7 -7 -7 -6 -6 ------- Run | Yrd Mat Mat Min Mat Fac Low Low Dat Pro Fac Traps Triggered 8 | . 3 . . . 5 . . . . . Indirectly . | . . . . . . . . . . . Trap Hack Attempts . | . . . . . . . . . . . Triggered . | . . . . . . . . . . . Disarmed . | . . . . . . . . . . . Reprogrammed 11 | . 3 8 . . . . . . . . Reused 4 | . 1 3 . . . . . . . . Traps Extracted . | . . . . . . . . . . . Installed . | . . . . . . . . . . . Triggered 4 | . 1 3 . . . . . . . . Machines | -11 -10 -9 -9 -8 -7 -7 -7 -7 -6 -6 ---------- Run | Yrd Mat Mat Min Mat Fac Low Low Dat Pro Fac Machines Disabled 8 | . 2 . . 1 2 . . . . 3 Max in Single Turn 2 | . 2 . . 1 1 . . . . 1 Machines Repaired . | . . . . . . . . . . . Machines Dismantled . | . . . . . . . . . . . Machines Sabotaged . | . . . . . . . . . . . Overloaded Fab Kills . | . . . . . . . . . . . Hacking | -11 -10 -9 -9 -8 -7 -7 -7 -7 -6 -6 --------- Run | Yrd Mat Mat Min Mat Fac Low Low Dat Pro Fac Machines Accessed 25 | . 2 2 . 1 13 . . 4 . 3 Terminals 14 | . 2 2 . . 7 . . . . 3 Fabricators 2 | . . . . . 2 . . . . . Repair Stations 1 | . . . . . 1 . . . . . Recycling Units . | . . . . . . . . . . . Scanalyzers 4 | . . . . 1 3 . . . . . Garrison Access . | . . . . . . . . . . . Total Hacks 92 | . 9 6 . 2 31 . . 31 . 13 Successful 57 | . 5 2 . 2 13 . . 31 . 4 Failed 35 | . 4 4 . . 18 . . . . 9 Catastrophic 10 | . 3 . . . 4 . . . . 3 Database Lockouts . | . . . . . . . . . . . Manual 2 | . . . . . . . . 2 . . Terminals 46 | . 9 6 . . 18 . . . . 13 Fabricators 3 | . . . . . 3 . . . . . Repair Stations 3 | . . . . . 3 . . . . . Recycling Units . | . . . . . . . . . . . Scanalyzers 9 | . . . . 2 7 . . . . . Garrison Access . | . . . . . . . . . . . Terminal Hacks 49 | . 5 2 . . 7 . . 31 . 4 Record 11 | . . . . . . . . 11 . . Part Schematic 11 | . . . . . . . . 11 . . Robot Schematic 7 | . . . . . 1 . . 6 . . Robot Analysis 2 | . . . . . 2 . . . . . Prototype ID Bank 3 | . . . . . . . . 3 . . Unreport Threat 1 | . . . . . 1 . . . . . Locate Traps 4 | . 1 . . . 2 . . . . 1 Reprogram Traps 3 | . 1 2 . . . . . . . . Transport Status 1 | . . . . . . . . . . 1 Investigation Status 1 | . 1 . . . . . . . . . Recall Reinforcements 1 | . . . . . . . . . . 1 Hauler Manifests 2 | . 1 . . . 1 . . . . . Registered Components 1 | . . . . . . . . . . 1 Zone Layout 1 | . 1 . . . . . . . . . Fabricator Hacks 2 | . . . . . 2 . . . . . Load Schematic 1 | . . . . . 1 . . . . . Build 1 | . . . . . 1 . . . . . Repair Station Hacks 2 | . . . . . 2 . . . . . Scan Component 1 | . . . . . 1 . . . . . Repair 1 | . . . . . 1 . . . . . Recycling Unit Hacks . | . . . . . . . . . . . Scanalyzer 4 | . . . . 2 2 . . . . . Insert Component 2 | . . . . 1 1 . . . . . Analyze 2 | . . . . 1 1 . . . . . Garrison Access Hacks . | . . . . . . . . . . . Unauthorized Hacks . | . . . . . . . . . . . Terminals . | . . . . . . . . . . . Fabricators . | . . . . . . . . . . . Repair Stations . | . . . . . . . . . . . Recycling Units . | . . . . . . . . . . . Scanalyzers . | . . . . . . . . . . . Garrison Access . | . . . . . . . . . . . Data Cores Recovered 1 | . . . . . . . . . . 1 Used 1 | . . . . . . . . . . 1 Hacking Detections 21 | . 2 2 . 1 13 . . . . 3 Full Trace Events 5 | . 2 1 . . 1 . . . . 1 Feedback Events . | . . . . . . . . . . . Feedback Blocked . | . . . . . . . . . . . Robot Schematics Acquired 7 | . . . . . 1 . . 6 . . Robots Built 2 | . . . . . 2 . . . . . Authchips . | . . . . . . . . . . . Time 134 | . . . . . 134 . . . . . Total Robot Build Rating 8 | . . . . . 8 . . . . . Part Schematics Acquired 13 | . . . . 1 1 . . 11 . . Parts Built . | . . . . . . . . . . . Authchips . | . . . . . . . . . . . Time . | . . . . . . . . . . . Total Part Build Rating . | . . . . . . . . . . . Parts Repaired 1 | . . . . . 1 . . . . . Time 13 | . . . . . 13 . . . . . Parts Recycled . | . . . . . . . . . . . Recycled Matter . | . . . . . . . . . . . Retrieved Matter . | . . . . . . . . . . . Retrieved Components . | . . . . . . . . . . . Parts Scanalyzed 2 | . . . . 1 1 . . . . . Part Schematics Acquired 2 | . . . . 1 1 . . . . . Parts Damaged . | . . . . . . . . . . . Bothacking | -11 -10 -9 -9 -8 -7 -7 -7 -7 -6 -6 ------------ Run | Yrd Mat Mat Min Mat Fac Low Low Dat Pro Fac Used RIF Installer . | . . . . . . . . . . . Robots Hacked . | . . . . . . . . . . . Non-combat . | . . . . . . . . . . . Combat . | . . . . . . . . . . . Robot Hacks Applied . | . . . . . . . . . . . Relay Couplers Released . | . . . . . . . . . . . Fabnet Peak Effective % . | . . . . . . . . . . . Robots Rewired . | . . . . . . . . . . . Allies Hacked . | . . . . . . . . . . . Hacks Repelled . | . . . . . . . . . . . Allies | -11 -10 -9 -9 -8 -7 -7 -7 -7 -6 -6 -------- Run | Yrd Mat Mat Min Mat Fac Low Low Dat Pro Fac Total Allies 4 | . . . 2 . 2 . . . . . Largest Group 2 | . . . 2 . 2 2 . . . . Highest-Rated Group 64 | . . . 41 . 64 64 . . . . Highest-Rated Ally 32 | . . . 31 . 32 32 . . . . Total Orders 1 | . . . . . 1 . . . . . GUARD 1 | . . . . . 1 . . . . . Ally Attacks 15 | . . . 11 . 1 3 . . . . Total Damage 338 | . . . 171 . 61 106 . . . . Kills 6 | . . . 4 . 1 1 . . . . Allies Corrupted . | . . . . . . . . . . . Allies Melted . | . . . . . . . . . . . Intel | -11 -10 -9 -9 -8 -7 -7 -7 -7 -6 -6 ------- Run | Yrd Mat Mat Min Mat Fac Low Low Dat Pro Fac Robot Analysis Total 2 | . . . . . 2 . . . . . Derelict Logs Recovered 6 | . . . 1 . . 2 2 . 1 . Drone Launches . | . . . . . . . . . . . Drone Recoveries . | . . . . . . . . . . . Exploration | -11 -10 -9 -9 -8 -7 -7 -7 -7 -6 -6 ------------- Run | Yrd Mat Mat Min Mat Fac Low Low Dat Pro Fac Turns Passed 5522 | 54 797 117 532 175 1717 902 95 22 168 943 Spaces Moved 5902 | 42 472 230 859 248 1519 1324 304 85 318 501 Core 11 | 8 2 . 1 . . . . . . . Treads 412 | . . . . . 412 . . . . . Legs 504 | 34 470 . . . . . . . . . Wheels . | . . . . . . . . . . . Hover . | . . . . . . . . . . . Flight 4975 | . . 230 858 248 1107 1324 304 85 318 501 Fastest Speed 20 | 50 120 29 29 32 26 26 26 26 26 20 Average Speed 45 | 106 120 29 32 37 64 26 26 26 26 25 Slowest Speed 200 | 120 200 29 200 112 160 26 26 26 26 26 Overloaded Moves 28 | . . . . . . . . . . 28 Propulsion Burnouts . | . . . . . . . . . . . Robots Hopped 11 | . . . 7 . 1 . . . . 3 Cave-ins Triggered . | . . . . . . . . . . . Exploration Rate (%) 51 | 5 64 22 100 26 42 99 51 72 71 13 Regions Visited 10 Branch Regions 5 Pre-discovered Areas 2 | . . . 1 . . . . 1 . . Known Exits Taken 7 | . . . 1 1 1 1 1 1 1 . Unknown Exits Taken 3 | 1 1 1 . . . . . . . . Scrap Searched 13 | . . . 3 . . 4 5 . 1 . Spaces Dug . | . . . . . . . . . . . Terrain Destroyed 6 | . 5 . . . . 1 . . . . Melee . | . . . . . . . . . . . Projectile 1 | . . . . . . 1 . . . . AOE 5 | . 5 . . . . . . . . . Terrain Rammed . | . . . . . . . . . . . Walls Destroyed . | . . . . . . . . . . . Machines Disabled . | . . . . . . . . . . . Actions | -11 -10 -9 -9 -8 -7 -7 -7 -7 -6 -6 --------- Run | Yrd Mat Mat Min Mat Fac Low Low Dat Pro Fac Total 8301 | 49 611 267 1034 295 2110 1857 319 84 402 1273 Wait 1904 | . 53 20 91 4 395 511 16 . 81 733 Move 5871 | 41 471 229 845 247 1516 1323 303 84 317 495 Hop 10 | . . . 6 . 1 . . . . 3 Pick Up 58 | 3 8 1 13 5 20 2 . . . 6 Fast Attach 55 | 4 9 1 4 4 28 2 . . 2 1 Attach 28 | 1 2 4 9 3 6 . . . . 3 Detach 2 | . . 1 . . 1 . . . . . Swap 44 | . 9 . 9 6 14 1 . . . 5 Drop 90 | . 13 4 17 6 39 3 . . 2 6 Fire 220 | . 46 7 40 20 71 15 . . . 21 Melee . | . . . . . . . . . . . Ram . | . . . . . . . . . . . Kick . | . . . . . . . . . . . Crush 1 | . . . . . 1 . . . . . Escape Stasis 18 | . . . . . 18 . . . . . Rewire . | . . . . . . . . . . . Trap . | . . . . . . . . . . . Miscellaneous . | . . . . . . . . . . . Route ------- -11/Scrapyard -10/Materials (discovered 2 exits: *Mat / [*Min]) -9/Materials -9/Mines (discovered 2 exits: *Mat x2) -8/Materials -7/Factory -7/Lower Caves -7/Lower Caves -7/Data Miner -6/Proximity Caves -6/Factory (discovered 1 exit: Low) History --------- Turn | Location | Event 10 | -11/Scrapyard | Discovered new exit (range 14) 55 | -11/Scrapyard | Entered Materials 152 | -10/Materials | Discovered new exit (range 15) 324 | -10/Materials | Build established: Mutant 832 | -10/Materials | Discovered new exit (range 14) 852 | -10/Materials | Entered another Materials area 852 | -9/Materials | Evolved 2 slots: Propulsion x1, Utility x1 932 | -9/Materials | Discovered new exit (range 14) 969 | -9/Materials | Entered Mines 972 | -9/Mines | Learned location of Storage (-9) 1064 | -9/Mines | Destroyed 8 combat bots 1102 | -9/Mines | Assembled infested the area 1233 | -9/Mines | Discovered new exit (range 10) 1236 | -9/Mines | Identified exit to Materials 1371 | -9/Mines | Discovered exit to Materials (range 6) 1501 | -9/Mines | Entered Materials 1501 | -8/Materials | Evolved 2 slots: Utility x1, Weapon x1 1594 | -8/Materials | Met 7R-MNS 1656 | -8/Materials | Discovered new exit (range 13) 1663 | -8/Materials | Identified exit to Factory 1676 | -8/Materials | Entered Factory 1676 | -7/Factory | Evolved 2 slots: Propulsion x1, Utility x1 1677 | -7/Factory | Caught up to 7R-MNS 1716 | -7/Factory | Repaired Flight Unit 2269 | -7/Factory | Build established: Scavenger-Skirmisher 3185 | -7/Factory | Fabricated Y-54 Guardian (x2) 3339 | -7/Factory | Discovered new exit (range 5) 3339 | -7/Factory | Identified exit to Lower Caves 3393 | -7/Factory | Entered Lower Caves 3393 | -7/Lower Caves | Accompanied by 2 allies 3436 | -7/Lower Caves | Attracted the attention of an 0b10 checkpoint 3520 | -7/Lower Caves | Learned Factory terminal intel 3623 | -7/Lower Caves | Build established: Scout 3857 | -7/Lower Caves | Discovered new exit (range 7) 3875 | -7/Lower Caves | Identified exit to Lower Caves 4295 | -7/Lower Caves | Entered another Lower Caves area 4385 | -7/Lower Caves | Discovered new exit (range 18) 4387 | -7/Lower Caves | Learned Factory stockpile data 4389 | -7/Lower Caves | Identified exit to Data Miner 4390 | -7/Lower Caves | Entered Data Miner 4390 | -7/Data Miner | Discovered new exit (range 6) 4392 | -7/Data Miner | Identified exit to Proximity Caves 4395 | -7/Data Miner | Met Data Miner 4401 | -7/Data Miner | Learned location of Section 7 (-3) 4401 | -7/Data Miner | Acquired the access code to Warlord's prototype stash 4406 | -7/Data Miner | Received God Mode back door access code from Data Miner 4412 | -7/Data Miner | Entered Proximity Caves 4573 | -6/Proximity Caves | Discovered new exit (range 3) 4573 | -6/Proximity Caves | Identified exit to Factory 4580 | -6/Proximity Caves | Entered Factory 4580 | -6/Factory | Evolved 2 slots: Utility x2 4581 | -6/Factory | Identified exit to Lower Caves 4583 | -6/Factory | Loaded intel: 26 terminal locations 5523 | -6/Factory | Self-destructed Last Messages --------------- 05511_ K-01 Serf destroyed. 05511_ K-01 Serf collects debris. 05513_ M-28 Smith repairs P-60 Hacker. 05514_ P-60 Hacker resets H-66 Slayer, system corruption cleaned. 05514_ Slug penetrates H-66 Slayer. 05514_ Slug penetrates M-28 Smith. 05514_ K-01 Serf collects debris. 05516_ Penetrated by Slug. 05517_ Acquired 1 matter. 05517_ Slug penetrates Wall. 05517_ Penetrated by Slug. 05517_ Adv. Terrain Scanner destroyed. 05517_ Acquired 4 matter. 05517_ Slug penetrates H-66 Slayer. 05519_ K-01 Serf collects debris. 05519_ Cld. Cesium-ion Thruster destroyed. 05520_ Slug penetrates H-66 Slayer. 05522_ Penetrated by Slug. 05523_ K-01 Serf collects debris. Map ----- +----------------------------------------------------+ | ?????????????????????????????????????????????????? | | ?????????????????????????????????????????????????? | | ?????????????????????????????????????????????????? | | ???????????????????????????????????? ????????? | | ????????????????????????????#?????? #???????? | | ??????????????????????????????????? #?????#?? | | ???????????????????????"??????????? # ????? | | ?????????????????????"?????????#??## #???????? | | ?????????????????##?????? ??##????# #? ? ?"?? | | ??????????????????#?#????#######???# #?? ??"?? | | ???????????????????###?????? ? + +??? ??"? | | ???????????##???###?#???## ?? ?# #? ????? | | ????????????#???????#??##?? ? ?""? # #??? ??? | | ???????????#???#######???#?? ? ""? # # ? | | ????????#????#?####?##?###? ? """?# # ?? ?? ? | | ??????#??#???#####?#????##? ??? ? # ##??##?## | | ??????????#??#####?#?#??#? ? ? # ##???###? | | ??????????#?##??#??#?##??#? ? ? # ##??#??## | | ?????????##?#??##?##?##?#?#?##?#??## ######?## | | ?????????#?####??####??####?####?###^ ######### | | ???????##?#?#?###?#####??########### # | | ???????????##????#####?#??###?#??#?# # """" " | | ???????#???######################### # """" " | | ??????#?# ?? # # """" " | | ??????##? ? """ """u# m # """" " | | ???????##? """ ""R" # %@% u + | | ????#???# """ "" " # % k """" # """" " | | ???#??#?# # "% """" # """" " | | ??????#? """ #* % """"k # """" " | | ?????#### """ # ""% """" # """" " | | ????????# """ # "%%h """" # | | ???#?#?## // + ""% h """" # ! | | ??????### /! # ######### | | ????????# / # """" #?? ? ? | | ??#?##?## ! + p """" #??? | | ???????#################+####### """" #? ?? | | ?????#######?###### # " "" # ? | | ????#?#?#?###?#???# """" """"! # """ + ?? ? | | #???###??####?##### """" """" =# """ # ? ? | | ?????#?????#?#?#### """" """ ! # + ? ? ? | | ?#????#???#??###?## """" "" " # """" # ? ??? | | ???#?###?##?##?#??# """" """" # """" #??? ??? | | ????????##?#####??# """" """" # """" # ? ?? ? | | ???#??##????#??#### [ # """" ? ????? ? | | ???###??#?######### # "?""?? #? ??? ? | | ????#?#??#?#??##### ! # ??"" ?####+?#? | | #?#?#??####?? ?? ?# * # ? ?? ?????#???? | | #????#?#???# ??# !# ?? ? ? ? ??????? | | ??????#???##!??? ?############## ??" ??????? ??? | | ????# ??? ?#?? ???#?#######??#?# ??"" ???? ??????? | +----------------------------------------------------+ Best States ------------- Heat Dissipation 48 Energy Generation 17 Energy Capacity 300 Matter Stores 300 Matter Capacity 300 Sight Range 20 Robot Scan Range 15 Terrain Scan Range 20 Terrain Scan Density 210 Additional Mass Support 6 Armor Coverage 150 Evasion (%) 64 Targeting Accuracy 19 Recoil Reduction 4 Kinecelleration 30 Defensive Hacking 10 Item Schematics ----------------- VTOL Module | -8/Materials | Scanalyzed Imp. Cesium-ion Thruster | -7/Factory | Scanalyzed Combat Drone Bay | -7/Data Miner | Free Lgt. Regenerative Plating | -7/Data Miner | Free Cld. Aerolev Unit | -7/Data Miner | Free Exp. Targeting Computer | -7/Data Miner | Free Antimatter Cannon | -7/Data Miner | Free Arm. Medium Treads | -7/Data Miner | Free Adv. Shield Generator | -7/Data Miner | Free Mass Driver | -7/Data Miner | Free Phase Cannon | -7/Data Miner | Free Wave Gun | -7/Data Miner | Free Quantum Capacitor | -7/Data Miner | Free Robot Schematics ------------------ Y-54 Guardian | -7/Factory | Hacked M-22 Extractor | -7/Data Miner | Free E-15 Imp | -7/Data Miner | Free S-27 Virus | -7/Data Miner | Free W-25 Informer | -7/Data Miner | Free P-60 Hacker | -7/Data Miner | Free B-48 Gladiator | -7/Data Miner | Free Fabricated ------------ Y-54 Guardian | x2 | -7/Factory | Preloaded Alien Tech Used ----------------- None Achievements -------------- None Challenges ------------ None Game ------ Seed MagneticBottomlessSegregator Manual? 0 Play Time 01:22:21 Cumulative 50.3 hours Start 2024.04.26 @ 19:36:38 End 2024.04.26 @ 22:45:37 Sessions 3 Manual Loads 0 Difficulty Rogue Special Mode None Game No. 80 Rogue 64 Adventurer 16 Explorer 0 Win Type - Total 0 Types 0/0/0/0/0/0/0/0/0 Lore% 17 Gallery% 35 Achievement% 26 Wizard Run 0 Options --------- Layout 2 ASCII 0 Keyboard 0 Movement Mouse Keybinds 0 Fullscreen 2 Font 24/Smallcaps Map View 50x44 Zoom Use 0% Tactical HUD 1 Map Filters NONE Filters NONE Steam 1 RUN: 5739f4f4-2be3-4225-8d21-5f31080b6b3f